bitfinex-derivatives/quotes_SOLF0:USTF0_20250703
["timestamp","ask_amount","ask_price","bid_price","bid_amount"]
[1751559634973,4.96567826,150.12,150.05,2.2105]
[1751559635275,4.96567826,150.12,150.04,4.96567826]
[1751559635881,6.6594,150.1,150.04,4.96567826]
[1751559636069,4.96567826,150.12,150.04,4.96567826]
[1751559636474,6.6595,150.1,150.04,4.96567826]
[1751559636771,4.96567826,150.12,150.04,4.96567826]
[1751559637180,6.6593,150.1,150.07,6.6603]
[1751559638484,6.6598,150.09,150.06,6.6608]
[1751559638878,4.96567826,150.12,150.04,4.96567826]
[1751559639278,6.6595,150.1,150.07,6.6603]
[1751559639977,4.5813,150.13,150.06,4.96567826]
[1751559640372,4.5813,150.13,150.08,4.96567826]
[1751559640682,6.16845147,150.21,150.1,4.96567826]
[1751559640876,4.96567826,150.18,150.12,4.96567826]
[1751559641182,6.6564,150.17,150.12,4.96567826]
[1751559641579,4.5371,150.19,150.12,4.96567826]
[1751559641777,11.1924,150.19,150.16,6.6564]
[1751559643380,9.50277826,150.19,150.11,4.96567826]
[1751559643583,9.50277826,150.19,150.07,5.1683]
[1751559643584,4.96567826,150.17,150.09,4.96567826]
[1751559644180,6.6571,150.15,150.12,6.6581]
[1751559646084,6.6571,150.15,150.13,6.6579]
[1751559646282,6.6576,150.14,150.09,4.96567826]
[1751559647084,6.6576,150.14,150.11,6.6585]
[1751559647481,4.96567826,150.15,150.07,7.38697826]
[1751559647875,6.6578,150.14,150.07,2.4213]
[1751559648085,4.96567826,150.15,150.1,6.6589]
[1751559648584,4.96567826,150.15,150.09,6.6595]
[1751559648987,8.69120227,150.18,150.09,6.6595]
[1751559648988,6.6586,150.12,150.09,6.6595]
[1751559649184,4.96567826,150.13,150.1,6.6592]
[1751559649685,6.6584,150.12,150.07,7.38697826]
[1751559649986,6.6584,150.12,150.09,6.6593]
[1751559651781,4.96567826,150.13,150.07,2.4213]
[1751559652079,4.96567826,150.13,150.07,6.6604]
[1751559652387,6.6595,150.1,150.07,6.6604]
[1751559652582,4.96567826,150.11,150.02,7.32407826]
[1751559652787,4.96567826,150.09,150.02,7.32407826]
[1751559653084,4.96567826,150.07,150.02,6.6625]
[1751559653288,4.96567826,150.07,149.97,2.1684]
[1751559653488,6.6622,150.04,150.01,6.663]
[1751559653688,6.6622,150.04,149.98,4.96567826]
[1751559654184,6.6622,150.04,149.97,7.13407826]
[1751559654690,11.62727826,150.05,149.97,7.13407826]
[1751559654890,2.2504,150.06,149.96,4.96567826]
[1751559654891,4.96567826,150.03,149.96,4.96567826]
[1751559655483,4.96567826,150.03,149.99,6.6639]
[1751559655988,11.62837826,150.03,149.99,6.6639]
[1751559656687,4.96567826,150.04,150.0,6.6636]
[1751559656892,9.48377826,150.06,149.98,4.96567826]
[1751559657287,6.6619,150.04,150.0,6.6635]
[1751559657488,9.48377826,150.06,149.98,4.96567826]
[1751559657796,2.2504,150.06,150.04,6.6619]
[1751559658092,2.2704,150.07,150.04,6.6619]
[1751559658891,8.931,150.07,150.04,6.6619]
[1751559659192,2.2704,150.07,150.04,6.6619]
[1751559659591,2.2704,150.07,150.05,6.6614]
[1751559659790,4.96567826,150.06,150.0,4.96567826]
[1751559659996,4.96567826,150.06,149.98,4.96567826]
[1751559660494,7.26517826,150.06,149.98,4.96567826]
[1751559660696,6.6619,150.04,150.01,6.6629]
[1751559660895,7.26517826,150.06,150.01,6.6629]
[1751559661095,7.26517826,150.06,149.98,4.96567826]
[1751559661395,7.26517826,150.06,150.0,4.96567826]
[1751559661591,7.26517826,150.06,149.98,4.96567826]
[1751559662090,7.26517826,150.06,150.0,6.6635]
[1751559662292,4.96567826,150.04,149.95,2.3584]
[1751559662496,4.96567826,150.04,149.96,4.96567826]
[1751559662692,4.96567826,150.02,149.98,6.6642]
[1751559663095,6.6635,150.01,149.98,6.6645]
[1751559664898,6.6635,150.01,149.99,6.664]
[1751559665595,11.62857826,150.02,149.99,6.664]
[1751559665895,4.35907614,150.0,149.92,6.40217862]
[1751559666106,4.35988815,149.93,149.83,8.27739198]
[1751559666313,4.35988815,149.93,149.81,2.2218]
[1751559666489,4.35988815,149.93,149.86,4.35988815]
[1751559666695,4.57,149.99,149.86,4.35988815]
[1751559666995,4.35988815,149.95,149.89,4.35988815]
[1751559667199,0.04641084,149.91,149.81,2.2218]
[1751559667395,0.04641084,149.91,149.9,6.6681]
[1751559667604,4.35988815,149.96,149.87,4.35988815]
[1751559667898,4.57,149.99,149.87,4.35988815]
[1751559667899,0.04376738,149.92,149.87,4.35988815]
[1751559668398,0.04376738,149.92,149.91,6.6673]
[1751559668594,0.04376738,149.92,149.89,4.35988815]
[1751559668797,11.02578815,149.95,149.89,4.35988815]
[1751559669000,4.35988815,149.95,149.89,6.6684]
[1751559669196,4.35988815,149.95,149.88,4.35988815]
[1751559670194,11.02608815,149.95,149.9,6.6681]
[1751559670400,4.35988815,149.95,149.88,4.35988815]
[1751559670598,4.57,149.99,149.92,4.35988815]
[1751559670802,4.57,149.99,149.93,4.35988815]
[1751559671301,6.6649,149.98,149.93,4.35988815]
[1751559672103,11.2343,149.99,149.94,6.6663]
[1751559672803,4.57,149.99,149.94,6.6663]
[1751559673002,2.2792,149.99,149.95,4.35988815]
[1751559673203,6.6631,150.02,149.97,4.35988815]
[1751559673403,6.57218815,150.04,149.97,4.35988815]
[1751559673602,5.83239387,150.03,149.99,4.35988815]
[1751559673810,4.6158,150.07,150.01,4.35988815]
[1751559674002,5.83103544,150.06,150.01,4.35988815]
[1751559674304,5.83103544,150.05,150.01,4.35988815]
[1751559674900,5.83103544,150.05,150.02,6.6624]
[1751559675102,8.97568815,150.07,150.02,6.6624]
[1751559675907,4.6158,150.07,150.02,6.6624]
[1751559676107,4.6158,150.07,149.99,7.45949537]
[1751559676606,6.661,150.06,149.99,7.45949537]
[1751559676809,4.6158,150.07,149.99,7.45949537]
[1751559677207,6.6615,150.05,150.01,6.6629]
[1751559677808,2.2123,150.09,149.95,6.8777]
[1751559678016,5.86524655,150.1,150.04,7.45949537]
[1751559678315,4.5409,150.12,150.04,7.45949537]
[1751559678512,5.86636069,150.11,150.04,7.45949537]
[1751559678819,4.5409,150.12,150.06,7.45949537]
[1751559679020,9.75159537,150.15,150.06,7.45949537]
[1751559679219,5.8683463,150.14,150.06,7.45949537]
[1751559679419,5.8683463,150.13,150.06,7.45949537]
[1751559679719,14.23559537,150.15,150.09,6.6597]
[1751559679921,5.86924338,150.14,150.06,7.45949537]
[1751559680322,6.6585,150.12,150.08,6.6598]
[1751559680912,7.45949537,150.13,149.98,13.3289]
[1751559681112,7.45949537,150.13,150.04,7.45949537]
[1751559681311,6.7761,150.15,149.98,75.3289]
[1751559681312,7.45949537,150.11,149.98,75.3289]
[1751559681522,7.45949537,150.11,150.02,7.45949537]
[1751559682222,6.6595,150.1,150.02,7.45949537]
[1751559682724,0.04869214,150.08,150.06,6.6607]
[1751559682922,0.04869214,150.08,150.06,7.45949537]
[1751559683121,5.91160732,150.14,150.06,7.45949537]
[1751559683318,11.1413,150.15,150.11,6.6585]
[1751559684021,11.1413,150.15,150.09,7.45949537]
[1751559684022,4.484,150.15,150.09,7.45949537]
[1751559684222,2.3742,150.18,150.11,7.45949537]
[1751559684420,5.91505845,150.17,150.11,7.45949537]
[1751559684827,12.57145845,150.17,150.13,6.6576]
[1751559685324,6.6564,150.17,150.13,6.6576]
[1751559685717,4.6755,150.2,150.11,7.45949537]
[1751559685923,4.6755,150.2,150.04,4.5574]
[1751559685924,5.91443991,150.19,150.13,7.45949537]
[1751559686124,5.91443991,150.18,150.13,7.45949537]
[1751559686326,4.6755,150.2,150.13,7.45949537]
[1751559686528,5.93470617,150.19,150.13,7.45949537]
[1751559686722,5.93470617,150.18,150.13,7.45949537]
[1751559686921,6.656,150.18,150.13,14.11719537]
[1751559687122,4.6755,150.2,150.13,14.11719537]
[1751559687330,5.93652312,150.19,150.13,7.45949537]
[1751559687524,6.6562,150.17,150.13,14.11709537]
[1751559687722,6.6562,150.17,150.13,6.6576]
[1751559687927,6.6559,150.18,150.14,6.6572]
[1751559688128,6.6559,150.18,150.11,7.45949537]
[1751559688129,2.3165,150.2,150.13,7.45949537]
[1751559688328,2.3165,150.2,150.15,7.45949537]
[1751559688329,5.93582623,150.2,150.15,7.45949537]
[1751559688527,5.93582623,150.19,150.17,6.6558]
[1751559688728,6.6544,150.21,150.17,6.6558]
[1751559688931,5.93473804,150.2,150.17,6.6558]
[1751559689129,6.6548,150.2,150.17,6.6558]
[1751559689330,2.2821,150.23,150.15,7.45949537]
[1751559689630,12.58849453,150.23,150.17,7.45949537]
[1751559689830,5.9355573,150.22,150.19,6.6549]
[1751559690736,6.654,150.22,150.18,6.6555]
[1751559691329,7.45949537,150.23,150.14,9.66809537]
[1751559691635,2.3638,150.24,150.14,9.66809537]
[1751559691830,7.45949537,150.21,150.14,9.66809537]
[1751559692027,6.6551,150.2,150.16,6.6562]
[1751559692435,6.6553,150.19,150.16,6.6562]
[1751559692938,7.45949537,150.23,150.17,6.6559]
[1751559693133,6.6546,150.21,150.17,6.6559]
[1751559694541,6.6548,150.2,150.17,6.6559]
[1751559694941,7.45949537,150.23,150.18,6.6556]
[1751559695235,2.3638,150.24,150.17,7.45949537]
[1751559695441,2.3638,150.24,150.19,6.655]
[1751559695644,9.78799537,150.26,150.17,7.45949537]
[1751559695839,5.95751224,150.25,150.17,7.45949537]
[1751559696034,6.6544,150.21,150.16,7.45949537]
[1751559696239,7.45949537,150.22,150.14,9.66809537]
[1751559696435,7.45949537,150.22,150.14,2.2086]
[1751559697442,6.655,150.2,150.16,6.6563]
[1751559697636,7.45949537,150.2,150.12,2.2856]
[1751559697940,7.45949537,150.18,150.12,2.2856]
[1751559698142,7.45949537,150.16,150.08,7.45949537]
[1751559698641,7.45949537,150.16,150.1,6.6588]
[1751559699050,6.6579,150.14,150.1,6.6588]
[1751559699348,7.45949537,150.16,150.11,6.6588]
[1751559699949,7.45949537,150.16,150.1,6.6591]
[1751559700147,7.45949537,150.16,150.06,9.87789537]
[1751559700451,7.45949537,150.14,150.06,2.4184]
[1751559700944,7.45949537,150.17,150.08,7.45949537]
[1751559701244,6.6562,150.17,150.1,7.45949537]
[1751559701644,9.79719537,150.19,150.1,7.45949537]
[1751559701842,2.3377,150.19,150.12,7.45949537]
[1751559702049,2.3377,150.19,150.16,6.6566]
[1751559702549,2.3377,150.19,150.14,6.6574]
[1751559703048,6.6562,150.17,150.14,6.6574]
[1751559703245,6.6562,150.17,150.13,6.6578]
[1751559703642,9.79719537,150.19,150.12,6.6582]
[1751559704154,6.657,150.15,150.12,6.6582]
[1751559704342,7.45949537,150.17,150.13,6.6579]
[1751559704546,7.45949537,150.17,150.08,7.45949537]
[1751559704748,6.6566,150.16,150.08,7.45949537]
[1751559704950,6.6566,150.16,150.12,6.658]
[1751559706156,6.6571,150.15,150.12,6.658]
[1751559707050,6.6567,150.16,150.13,6.6579]
[1751559707759,6.657,150.15,150.12,6.6582]
[1751559707950,6.657,150.15,150.09,7.45949537]
[1751559708450,7.45949537,150.17,150.09,7.45949537]
[1751559708756,6.6567,150.16,150.12,6.658]
[1751559710157,6.6567,150.16,150.09,7.45949537]
[1751559710555,6.6571,150.15,150.09,7.45949537]
[1751559711150,6.6575,150.14,150.06,2.4184]
[1751559711461,7.45949537,150.15,150.06,9.87789537]
[1751559711652,7.45949537,150.17,150.08,7.45949537]
[1751559711854,11.62408827,150.16,150.12,6.6581]
[1751559712159,4.96708827,150.16,150.12,6.6581]
[1751559712354,6.6571,150.15,150.12,6.6581]
[1751559713858,4.96708827,150.16,150.12,6.6581]
[1751559714061,4.96708827,150.16,150.09,4.96708827]
[1751559714062,4.96708827,150.16,150.13,6.6578]
[1751559714760,11.62388827,150.16,150.13,6.6578]
[1751559714962,6.6568,150.16,150.13,6.6578]
[1751559715758,11.62388827,150.16,150.13,6.6578]
[1751559716364,5.88467904,150.15,150.13,6.6578]
[1751559716669,4.96708827,150.16,150.09,4.96708827]
[1751559716861,5.88580335,150.15,150.11,4.96708827]
[1751559717160,4.96708827,150.18,150.11,4.96708827]
[1751559717358,5.88540407,150.17,150.11,4.96708827]
[1751559717559,2.3377,150.19,150.08,4.96708827]
[1751559717760,5.89379327,150.18,150.17,6.6561]
[1751559718758,10.39299121,150.22,150.18,6.6553]
[1751559718759,8.36616628,150.22,150.18,6.6553]
[1751559718954,5.90082153,150.21,150.18,6.6553]
[1751559719160,5.90082153,150.2,150.15,4.96708827]
[1751559719356,5.90082153,150.19,150.15,4.96708827]
[1751559719664,5.90082153,150.18,150.12,4.96708827]
[1751559719865,5.90082153,150.17,150.15,6.6568]
[1751559720061,5.90082153,150.16,150.15,6.6568]
[1751559720358,5.90082153,150.16,150.12,4.96708827]
[1751559720660,5.90082153,150.16,150.11,4.5424]
[1751559720661,10.8679098,150.15,150.08,4.96708827]
[1751559720861,5.90082153,150.14,150.08,4.96708827]
[1751559721059,5.90082153,150.13,150.1,4.96708827]
[1751559721258,11.06015455,150.17,150.1,4.96708827]
[1751559721455,12.021799,150.16,150.1,4.96708827]
[1751559721659,5.92873272,150.15,150.1,4.96708827]
[1751559721965,5.92873272,150.14,150.1,4.96708827]
[1751559722165,12.74966628,150.16,150.1,4.96708827]
[1751559722166,5.92873272,150.13,150.1,4.96708827]
[1751559722366,5.93204978,150.12,150.1,4.96708827]
[1751559722667,12.74966628,150.16,150.1,4.96708827]
[1751559722866,5.93149029,150.15,150.13,6.6577]
[1751559723061,5.93149029,150.14,150.13,6.6577]
[1751559725266,5.93149029,150.14,150.06,4.6619]
[1751559725563,5.93149029,150.13,150.09,4.96708827]
[1751559725766,5.93149029,150.12,150.09,4.96708827]
[1751559725966,5.93149029,150.11,150.1,6.6592]
[1751559727365,17.71695455,150.16,150.12,6.658]
[1751559727566,5.93699865,150.15,150.12,6.658]
[1751559727766,5.93699865,150.14,150.13,6.6579]
[1751559728164,5.93699865,150.14,150.09,4.96708827]
[1751559728465,5.93699865,150.13,150.12,6.6581]
[1751559731262,12.74956628,150.17,150.14,6.6574]
[1751559731560,5.93124064,150.16,150.14,6.6574]
[1751559731766,5.93124064,150.15,150.14,6.6574]
[1751559732268,6.6565,150.17,150.14,6.6574]
[1751559732468,5.78985676,150.16,150.13,6.6577]
[1751559732657,5.78993425,150.15,150.13,6.6577]
[1751559732860,6.6565,150.17,150.13,6.6577]
[1751559733058,5.79060826,150.16,150.13,6.6577]
[1751559733266,5.79060826,150.15,150.13,6.6577]
[1751559733467,6.6565,150.17,150.14,6.6574]
[1751559733667,5.79001423,150.16,150.1,4.96708827]
[1751559733863,11.06015455,150.18,150.1,4.96708827]
[1751559734073,5.79034262,150.17,150.1,4.96708827]
[1751559734363,5.79034262,150.16,150.14,6.6571]
[1751559734567,5.79034262,150.15,150.14,6.6571]
[1751559734763,4.96708827,150.18,150.1,4.96708827]
[1751559734973,5.79535982,150.17,150.15,6.6568]
[1751559735165,5.79535982,150.16,150.15,6.6568]
[1751559739465,6.09306628,150.2,150.17,6.6559]
[1751559739669,5.80239499,150.19,150.17,6.6559]
[1751559739870,6.09306628,150.2,150.17,6.6559]
[1751559739871,5.80239499,150.18,150.17,6.6559]
[1751559740071,5.80239499,150.18,150.08,18.28698827]
[1751559740272,5.80239499,150.17,150.13,4.96708827]
[1751559740470,5.80239499,150.16,150.13,4.96708827]
[1751559740667,6.6559,150.18,150.14,6.657]
[1751559740875,5.80519998,150.17,150.13,4.96708827]
[1751559741070,5.80519998,150.16,150.13,4.96708827]
[1751559741272,12.74806628,150.2,150.17,6.6561]
[1751559741471,5.80597435,150.19,150.17,6.6561]
[1751559741665,5.80597435,150.18,150.13,4.96708827]
[1751559741871,12.74806628,150.2,150.17,6.6561]
[1751559742071,5.80811483,150.19,150.17,6.6561]
[1751559742274,5.80811483,150.18,150.17,6.6561]
[1751559743178,5.80811483,150.18,150.16,6.6564]
[1751559743476,5.80811483,150.17,150.16,6.6564]
[1751559745775,1.483e-05,150.17,150.16,6.6564]
[1751559745965,0.04497038,150.18,150.17,6.6561]
[1751559749771,0.04497038,150.18,150.17,11.62318827]
[1751559749976,6.09306628,150.21,150.2,6.6548]
[1751559750178,6.09306628,150.22,150.19,4.96708827]
[1751559750581,6.09306628,150.23,150.22,6.6539]
[1751559751174,6.09306628,150.24,150.23,6.6535]
[1751559751371,6.09306628,150.24,150.23,11.62058827]
[1751559751574,6.09306628,150.25,150.23,4.96708827]
[1751559751775,6.09306628,150.25,150.24,6.653]
[1751559752577,6.09306628,150.26,150.25,6.6526]
[1751559752873,8.11989121,150.28,150.25,6.6526]
[1751559752874,6.09306628,150.27,150.25,6.6526]
[1751559753274,6.09306628,150.27,150.23,4.96708827]
[1751559754181,6.09306628,150.27,150.25,6.6523]
[1751559754386,6.09306628,150.27,150.16,4.96708827]
[1751559754584,11.06015455,150.27,150.19,4.96708827]
[1751559755085,4.96708827,150.25,150.17,4.96708827]
[1751559755286,4.96708827,150.23,150.16,4.96708827]
[1751559755480,4.96708827,150.23,150.12,6.8197]
[1751559755783,2.3592,150.24,150.12,6.8197]
[1751559755784,4.96708827,150.21,150.14,4.96708827]
[1751559755980,4.96708827,150.21,150.18,6.6555]
[1751559756380,4.96708827,150.23,150.16,4.96708827]
[1751559756583,2.3592,150.24,150.21,6.6543]
[1751559756780,4.96708827,150.23,150.17,4.96708827]
[1751559757175,6.654,150.22,150.18,6.6555]
[1751559757580,4.96708827,150.23,150.18,6.6555]
[1751559757881,4.96708827,150.21,150.14,4.96708827]
[1751559758081,5.78145387,150.2,150.14,4.96708827]
[1751559758283,6.655,150.2,150.16,6.6561]
[1751559758483,4.96708827,150.22,150.14,4.96708827]
[1751559758683,5.80995252,150.21,150.14,4.96708827]
[1751559758887,5.80995252,150.2,150.16,6.6562]
[1751559759087,4.96708827,150.22,150.14,4.96708827]
[1751559759284,5.80994745,150.21,150.14,4.96708827]
[1751559759482,5.80994745,150.2,150.17,6.6559]
[1751559759684,5.80994745,150.2,150.14,4.96708827]
[1751559759685,6.6546,150.21,150.14,4.96708827]
[1751559759881,5.81091017,150.2,150.14,4.96708827]
[1751559760088,6.6546,150.21,150.17,6.6558]
[1751559760290,12.46376493,150.2,150.14,4.96708827]
[1751559760590,6.6548,150.2,150.14,4.96708827]
[1751559761486,4.96708827,150.22,150.14,4.96708827]
[1751559761690,5.73616554,150.21,150.16,4.96708827]
[1751559761992,2.1934,150.23,150.18,6.6556]
[1751559762187,2.1934,150.23,150.16,4.96708827]
[1751559762188,5.73718605,150.22,150.16,4.96708827]
[1751559762389,2.1934,150.23,150.16,4.96708827]
[1751559762691,5.73668606,150.22,150.19,6.655]
[1751559762893,5.73634086,150.21,150.19,6.655]
[1751559763093,2.1934,150.23,150.19,6.655]
[1751559763297,12.39035496,150.22,150.19,6.655]
[1751559763494,5.73635496,150.21,150.19,6.655]
[1751559763694,2.1934,150.23,150.19,6.655]
[1751559763893,5.73422934,150.22,150.19,6.655]
[1751559764095,5.73422934,150.21,150.19,6.655]
[1751559764389,2.1934,150.23,150.19,6.655]
[1751559764596,12.38792083,150.22,150.2,6.6547]
[1751559764789,12.38792083,150.22,150.16,4.96708827]
[1751559764790,5.73402083,150.21,150.16,4.96708827]
[1751559765090,10.70015246,150.2,150.12,4.5784]
[1751559765296,5.73306419,150.19,150.12,4.96708827]
[1751559765592,10.70015246,150.18,150.12,4.96708827]
[1751559765795,4.96708827,150.18,150.12,4.96708827]
[1751559766288,11.62298827,150.18,150.15,6.6567]
[1751559768194,6.6561,150.17,150.15,6.6567]
[1751559768590,7.16788827,150.18,150.14,6.6573]
[1751559768798,4.96708827,150.16,150.14,6.6573]
[1751559769896,6.657,150.15,150.06,2.2344]
[1751559770196,10.6828395,150.14,150.06,7.20148827]
[1751559770392,4.96708827,150.14,150.06,7.20148827]
[1751559770593,12.37272924,150.13,150.1,6.659]
[1751559770798,6.6582,150.13,150.1,6.659]
[1751559771097,4.96708827,150.14,150.06,4.96708827]
[1751559771298,5.71378422,150.13,150.06,4.96708827]
[1751559771596,6.6583,150.13,150.09,6.6594]
[1751559772195,6.6583,150.13,150.1,6.6591]
[1751559772395,6.6575,150.14,150.06,4.96708827]
[1751559772590,5.71145875,150.13,150.06,4.96708827]
[1751559772796,6.6581,150.13,150.09,6.6594]
[1751559773299,6.6581,150.13,150.09,6.6593]
[1751559773700,11.62478827,150.14,150.1,6.6591]
[1751559774101,4.96708827,150.14,150.1,6.6591]
[1751559774301,12.36727583,150.13,150.09,6.6596]
[1751559774496,4.96708827,150.14,150.05,4.6602]
[1751559774699,6.6593,150.1,150.04,4.96708827]
[1751559774902,4.96708827,150.1,150.04,4.96708827]
[1751559775402,11.62648827,150.1,150.06,6.6606]
[1751559775602,4.96708827,150.1,150.04,4.96708827]
[1751559776099,2.3242,150.13,150.06,4.96708827]
[1751559776304,8.00729513,150.13,150.06,4.96708827]
[1751559776502,6.6586,150.12,150.06,4.96708827]
[1751559776801,2.3242,150.13,150.06,4.96708827]
[1751559777001,8.00723114,150.13,150.1,6.6592]
[1751559777201,2.3242,150.13,150.1,6.6592]
[1751559777892,2.3242,150.13,150.09,6.6595]
[1751559778304,4.96708827,150.12,150.05,4.96708827]
[1751559778496,6.659,150.11,150.05,4.96708827]
[1751559779000,6.659,150.11,150.07,6.6603]
[1751559779505,6.659,150.11,150.05,4.96708827]
[1751559780104,6.659,150.11,150.07,6.6603]
[1751559781104,6.659,150.11,150.05,4.96708827]
[1751559781301,6.659,150.11,150.02,2.3279]
[1751559781606,6.659,150.11,150.04,4.96708827]
[1751559781809,11.62568827,150.12,150.08,6.6598]
[1751559782296,6.6588,150.11,150.08,6.6598]
[1751559782808,6.6588,150.11,150.02,2.3279]
[1751559782996,6.6588,150.11,150.05,4.96708827]
[1751559783204,6.6588,150.11,150.02,2.3279]
[1751559783402,6.6588,150.11,150.05,4.96708827]
[1751559783608,11.62558827,150.12,150.05,4.96708827]
[1751559783804,7.29128827,150.13,150.1,6.6591]
[1751559784011,2.3273,150.15,150.11,4.96708827]
[1751559784208,2.2067,150.16,150.11,4.96708827]
[1751559784399,2.2067,150.16,150.15,6.657]
[1751559784599,13.91918827,150.19,150.15,6.657]
[1751559784805,13.91918827,150.19,150.11,4.96708827]
[1751559785105,7.26368827,150.19,150.11,4.96708827]
[1751559785312,6.656,150.18,150.11,4.96708827]
[1751559785507,7.26368827,150.19,150.09,2.369]
[1751559785708,4.96708827,150.17,150.14,6.6574]
[1751559786308,11.62328827,150.17,150.14,6.6574]
[1751559788212,4.96708827,150.17,150.15,6.6568]
[1751559789316,4.96708827,150.17,150.14,6.6573]
[1751559789616,4.96708827,150.17,150.1,4.96708827]
[1751559789811,6.6568,150.16,150.13,6.6576]
[1751559791111,4.96708827,150.15,150.11,6.6585]
[1751559791315,4.96708827,150.13,150.06,4.96708827]
[1751559791612,11.62518827,150.13,150.06,4.96708827]
[1751559792217,2.307,150.14,150.08,4.96708827]
[1751559792511,4.96708827,150.16,150.1,4.96708827]
[1751559792711,6.6564,150.17,150.14,6.6574]
[1751559792916,4.96708827,150.18,150.11,4.96708827]
[1751559793316,6.6561,150.17,150.14,6.6572]
[1751559793621,4.96708827,150.18,150.11,4.96708827]
[1751559793820,6.6564,150.17,150.11,4.96708827]
[1751559794414,6.6564,150.17,150.12,6.6579]
[1751559794619,6.6564,150.17,150.11,4.96708827]
[1751559794819,6.6564,150.17,150.12,6.6581]
[1751559795720,6.6567,150.16,150.12,6.6581]
[1751559796120,4.96708827,150.18,150.09,2.3017]
[1751559796321,4.96708827,150.18,150.1,4.96708827]
[1751559796916,2.2966,150.19,150.12,4.96708827]
[1751559797121,6.6562,150.17,150.12,4.96708827]
[1751559797426,2.2966,150.19,150.14,4.96708827]
[1751559797718,6.6561,150.18,150.14,4.96708827]
[1751559798727,6.6561,150.18,150.15,6.657]
[1751559799117,6.6555,150.19,150.14,4.96708827]
[1751559800012,6.6555,150.19,150.15,6.6566]
[1751559800414,6.6555,150.19,150.14,4.96708827]
[1751559801116,2.2124,150.2,150.14,4.96708827]
[1751559801313,5.67680035,150.19,150.15,6.6566]
[1751559801527,2.2124,150.2,150.15,6.6566]
[1751559801725,5.67676603,150.19,150.15,6.6566]
[1751559801931,6.6555,150.19,150.16,6.6565]
[1751559802920,118.15590049,150.21,150.14,4.96708827]
[1751559803125,10.64523811,150.2,150.14,4.96708827]
[1751559803321,4.96708827,150.2,150.14,4.96708827]
[1751559803822,11.62208827,150.2,150.17,6.6561]
[1751559806024,11.62208827,150.2,150.18,6.6557]
[1751559806225,4.96708827,150.2,150.18,6.6557]
[1751559807833,11.62188827,150.2,150.18,6.6557]
[1751559808125,5.68398973,150.19,150.17,6.6559]
[1751559808322,11.62188827,150.2,150.1,13.3182]
[1751559808533,5.68439817,150.19,150.17,6.6559]
[1751559808725,11.62188827,150.2,150.17,6.6559]
[1751559808921,5.68532136,150.19,150.14,4.96708827]
[1751559809121,123.12298876,150.21,150.13,4.96708827]
[1751559809327,4.96708827,150.19,150.11,4.96708827]
[1751559809530,5.6859418,150.18,150.15,6.6567]
[1751559809726,11.62258827,150.19,150.15,6.6567]
[1751559809933,5.68549897,150.18,150.15,6.6567]
[1751559810230,5.68549897,150.18,150.11,4.96708827]
[1751559810231,11.62258827,150.19,150.11,4.96708827]
[1751559810429,5.68643037,150.18,150.11,4.96708827]
[1751559810731,11.62258827,150.19,150.11,4.96708827]
[1751559810926,5.69111662,150.18,150.15,6.6567]
[1751559811127,11.62258827,150.19,150.15,6.6567]
[1751559811327,12.34663172,150.18,150.15,6.6567]
[1751559811527,4.96708827,150.19,150.16,6.6565]
[1751559811737,5.69085846,150.18,150.16,6.6565]
[1751559811926,4.96708827,150.19,150.16,6.6565]
[1751559812128,5.69115196,150.18,150.16,6.6565]
[1751559812426,11.62258827,150.19,150.16,6.6565]
[1751559812632,5.69192604,150.18,150.16,6.6565]
[1751559812836,11.62258827,150.19,150.16,6.6565]
[1751559813133,5.69192363,150.18,150.16,6.6565]
[1751559813323,6.6557,150.18,150.16,6.6565]
[1751559813929,11.62258827,150.19,150.16,6.6565]
[1751559814222,5.69336992,150.18,150.16,6.6565]
[1751559814428,4.96708827,150.19,150.16,6.6565]
[1751559814734,12.34837755,150.18,150.16,6.6565]
[1751559814929,6.6559,150.18,150.16,6.6565]
[1751559816432,11.62318827,150.17,150.15,6.6569]
[1751559816830,4.96708827,150.17,150.09,6.9931]
[1751559817027,5.68681016,150.16,150.09,11.96018827]
[1751559817223,4.96708827,150.17,150.09,11.96018827]
[1751559817426,12.34390509,150.16,150.09,11.96018827]
[1751559817631,4.96708827,150.17,150.09,6.9931]
[1751559817826,4.96708827,150.15,150.09,7.26878827]
[1751559818130,5.68567216,150.14,150.12,6.6581]
[1751559818327,11.62418827,150.15,150.09,2.3017]
[1751559818535,4.96708827,150.13,150.06,4.96708827]